[Event "Live Chess"]
[Site "Chess.com"]
[Date "2023.05.21"]
[Round "-"]
[White "Hacker_2009"]
[Black "BostonStrangler"]
[Result "1-0"]
[WhiteElo "1930"]
[BlackElo "2054"]
[TimeControl "300"]
[EndTime "21:49:26 PDT"]
[Termination "Hacker_2009 won by resignation"]

1. d4 {[%clk 0:04:56.7]} 1... Nf6 {[%clk 0:04:58.7]} 2. Nf3 {[%clk 0:04:55.1]}
2... g6 {[%clk 0:04:56.2]} 3. c4 {[%clk 0:04:54]} 3... c5 {[%clk 0:04:54.5]} 4.
e3 {[%clk 0:04:52.6]} 4... Bg7 {[%clk 0:04:52.9]} 5. Nc3 {[%clk 0:04:51.1]} 5...
O-O {[%clk 0:04:51.5]} 6. Be2 {[%clk 0:04:50.8]} 6... cxd4 {[%clk 0:04:50.1]} 7.
Nxd4 {[%clk 0:04:49.4]} 7... d5 {[%clk 0:04:49.7]} 8. cxd5 {[%clk 0:04:47.3]}
8... Nxd5 {[%clk 0:04:48.3]} 9. Nxd5 {[%clk 0:04:46.6]} 9... Qxd5 {[%clk
0:04:46.8]} 10. Bf3 {[%clk 0:04:46.2]} 10... Qa5+ {[%clk 0:04:44]} 11. Bd2
{[%clk 0:04:44.4]} 11... Qb6 {[%clk 0:04:43.1]} 12. Bc3 {[%clk 0:04:43.4]} 12...
e5 {[%clk 0:04:37.3]} 13. Nb3 {[%clk 0:04:39.8]} 13... Be6 {[%clk 0:04:34.3]}
14. O-O {[%clk 0:04:37]} 14... Nc6 {[%clk 0:04:31.7]} 15. Rc1 {[%clk 0:04:25.6]}
15... Rfd8 {[%clk 0:04:29.6]} 16. Qc2 {[%clk 0:04:19.8]} 16... Rac8 {[%clk
0:04:26.8]} 17. Nd2 {[%clk 0:04:15.6]} 17... f5 {[%clk 0:03:58.2]} 18. e4 {[%clk
0:04:10.5]} 18... Nd4 {[%clk 0:03:42.7]} 19. Qd1 {[%clk 0:04:00.2]} 19... Bxa2
{[%clk 0:03:30.6]} 20. Bxd4 {[%clk 0:03:55.7]} 20... Rxd4 {[%clk 0:03:17.8]} 21.
Rxc8+ {[%clk 0:03:53.4]} 1-0

[Event "Live Chess"]
[Site "Chess.com"]
[Date "2023.05.21"]
[Round "-"]
[White "LutherSullivan"]
[Black "smoggyrabbit"]
[Result "1-0"]
[WhiteElo "2193"]
[BlackElo "1741"]
[TimeControl "300"]
[EndTime "21:49:33 PDT"]
[Termination "LutherSullivan won by resignation"]

1. e4 {[%clk 0:04:55.7]} 1... e6 {[%clk 0:04:59]} 2. d4 {[%clk 0:04:53.8]} 2...
d5 {[%clk 0:04:58.1]} 3. e5 {[%clk 0:04:53.1]} 3... c5 {[%clk 0:04:56.9]} 4. c3
{[%clk 0:04:52.7]} 4... Nc6 {[%clk 0:04:56.3]} 5. Nf3 {[%clk 0:04:52.1]} 5...
Bd7 {[%clk 0:04:55.6]} 6. Be2 {[%clk 0:04:52]} 6... Nge7 {[%clk 0:04:53.7]} 7.
O-O {[%clk 0:04:51.5]} 7... Nf5 {[%clk 0:04:52.7]} 8. Na3 {[%clk 0:04:50.7]}
8... cxd4 {[%clk 0:04:49.5]} 9. cxd4 {[%clk 0:04:49.1]} 9... Be7 {[%clk
0:04:46.1]} 10. Nc2 {[%clk 0:04:47.7]} 10... O-O {[%clk 0:04:44.9]} 11. Bd3
{[%clk 0:04:42.4]} 11... Rc8 {[%clk 0:04:14.6]} 12. g4 {[%clk 0:04:35.1]} 12...
Nh4 {[%clk 0:04:12.7]} 13. Nxh4 {[%clk 0:04:33.5]} 13... Bxh4 {[%clk 0:04:12.6]}
14. g5 {[%clk 0:04:32.4]} 14... Bxg5 {[%clk 0:04:10.8]} 15. Qh5 {[%clk
0:04:05.5]} 15... h6 {[%clk 0:04:01.4]} 16. f4 {[%clk 0:03:43.1]} 16... Be7
{[%clk 0:03:53.4]} 17. Kh1 {[%clk 0:03:41.1]} 17... Qb6 {[%clk 0:02:50.7]} 18.
Rg1 {[%clk 0:03:30.6]} 18... Kh8 {[%clk 0:02:35.9]} 19. f5 {[%clk 0:03:14.7]}
19... Nxd4 {[%clk 0:01:20.2]} 20. Rxg7 {[%clk 0:02:57]} 20... Kxg7 {[%clk
0:00:15.3]} 21. Bxh6+ {[%clk 0:02:52.5]} 21... Kg8 {[%clk 0:00:12.8]} 22. Qg4+
{[%clk 0:02:50.5]} 1-0

[Event "Live Chess"]
[Site "Chess.com"]
[Date "2023.05.21"]
[Round "-"]
[White "mirandaasilva"]
[Black "1PRK1"]
[Result "1-0"]
[WhiteElo "1681"]
[BlackElo "1378"]
[TimeControl "300"]
[EndTime "21:49:56 PDT"]
[Termination "mirandaasilva won by resignation"]

1. e3 {[%clk 0:04:55.5]} 1... d5 {[%clk 0:04:57.3]} 2. c4 {[%clk 0:04:55.4]}
2... e6 {[%clk 0:04:46.1]} 3. cxd5 {[%clk 0:04:53.8]} 3... exd5 {[%clk
0:04:43.9]} 4. b3 {[%clk 0:04:53.7]} 4... Nf6 {[%clk 0:04:41.1]} 5. Bb2 {[%clk
0:04:53.6]} 5... Be7 {[%clk 0:04:39.9]} 6. Nf3 {[%clk 0:04:51.9]} 6... O-O
{[%clk 0:04:38.7]} 7. Be2 {[%clk 0:04:51.6]} 7... c5 {[%clk 0:04:37.6]} 8. O-O
{[%clk 0:04:50.3]} 8... Nc6 {[%clk 0:04:35.4]} 9. d4 {[%clk 0:04:43.9]} 9... b6
{[%clk 0:04:18.4]} 10. Nc3 {[%clk 0:04:41.6]} 10... Bb7 {[%clk 0:04:15.1]} 11.
Rc1 {[%clk 0:04:37.6]} 11... Rc8 {[%clk 0:04:13.7]} 12. dxc5 {[%clk 0:04:33.3]}
12... bxc5 {[%clk 0:04:09.3]} 13. Bb5 {[%clk 0:04:32.7]} 13... a6 {[%clk
0:04:02.1]} 14. Bxc6 {[%clk 0:04:31.2]} 14... Bxc6 {[%clk 0:04:00.8]} 15. Qd2
{[%clk 0:04:27.1]} 15... Qa5 {[%clk 0:03:46.6]} 16. Rfd1 {[%clk 0:04:22]} 16...
Rfd8 {[%clk 0:03:43.4]} 17. Ne5 {[%clk 0:04:19.6]} 17... Bb7 {[%clk 0:03:36.1]}
18. Na4 {[%clk 0:04:10.2]} 18... Qxd2 {[%clk 0:03:31]} 19. Rxd2 {[%clk
0:04:10.1]} 19... Bd6 {[%clk 0:03:13.1]} 20. Rdc2 {[%clk 0:03:41.4]} 20... Bxe5
{[%clk 0:02:33.4]} 21. Bxe5 {[%clk 0:03:41.3]} 21... Nd7 {[%clk 0:02:27.4]} 22.
Bg3 {[%clk 0:03:37]} 22... Bc6 {[%clk 0:02:17.2]} 23. Nxc5 {[%clk 0:03:33.6]}
23... Nxc5 {[%clk 0:02:14.2]} 24. Rxc5 {[%clk 0:03:33.5]} 24... Bb7 {[%clk
0:02:11.7]} 25. Rxc8 {[%clk 0:03:23]} 25... Rxc8 {[%clk 0:02:10]} 26. Rxc8+
{[%clk 0:03:20.6]} 26... Bxc8 {[%clk 0:02:09]} 27. Kf1 {[%clk 0:03:19.9]} 27...
f6 {[%clk 0:02:01.7]} 28. Ke2 {[%clk 0:03:18.3]} 28... Kf7 {[%clk 0:02:00.8]}
29. Kd3 {[%clk 0:03:17.1]} 29... Ke6 {[%clk 0:01:56.5]} 30. Kd4 {[%clk 0:03:16]}
30... Bd7 {[%clk 0:01:52.1]} 31. Bc7 {[%clk 0:03:06.6]} 31... Bb5 {[%clk
0:01:44]} 32. a4 {[%clk 0:03:01.7]} 32... Bf1 {[%clk 0:01:42.1]} 33. g3 {[%clk
0:02:57]} 33... g5 {[%clk 0:01:33.7]} 34. h4 {[%clk 0:02:50.5]} 34... h6 {[%clk
0:01:31.4]} 35. hxg5 {[%clk 0:02:48.5]} 35... hxg5 {[%clk 0:01:29.8]} 36. Bd8
{[%clk 0:02:41.9]} 36... Be2 {[%clk 0:01:22.9]} 37. b4 {[%clk 0:02:36.4]} 37...
Bf1 {[%clk 0:01:11.7]} 38. Kc5 {[%clk 0:02:32.1]} 38... f5 {[%clk 0:01:07.3]}
39. Bxg5 {[%clk 0:02:29.4]} 39... Ke5 {[%clk 0:01:04.8]} 40. Bf4+ {[%clk
0:02:21.1]} 40... Ke4 {[%clk 0:01:03.8]} 41. b5 {[%clk 0:02:17.9]} 41... axb5
{[%clk 0:01:02]} 42. axb5 {[%clk 0:02:15.7]} 42... Bd3 {[%clk 0:00:58.2]} 43. b6
{[%clk 0:02:12.6]} 43... Ba6 {[%clk 0:00:57.1]} 44. Kc6 {[%clk 0:02:11.2]} 44...
d4 {[%clk 0:00:54.4]} 1-0

[Event "Live Chess"]
[Site "Chess.com"]
[Date "2023.05.21"]
[Round "-"]
[White "Tushinskiy"]
[Black "Long1968"]
[Result "1-0"]
[WhiteElo "2212"]
[BlackElo "1059"]
[TimeControl "300"]
[EndTime "21:50:00 PDT"]
[Termination "Tushinskiy won on time"]

1. d4 {[%clk 0:04:57.8]} 1... e6 {[%clk 0:04:53.9]} 2. c3 {[%clk 0:04:57.7]}
2... c5 {[%clk 0:04:50.4]} 3. Nf3 {[%clk 0:04:57.6]} 3... cxd4 {[%clk
0:04:48.1]} 4. cxd4 {[%clk 0:04:56.6]} 4... d5 {[%clk 0:04:46.2]} 5. Nc3 {[%clk
0:04:56.5]} 5... a6 {[%clk 0:04:44.4]} 6. Bf4 {[%clk 0:04:55.9]} 6... b5 {[%clk
0:04:42.1]} 7. e3 {[%clk 0:04:55.1]} 7... Bb7 {[%clk 0:04:40.4]} 8. Bd3 {[%clk
0:04:53.1]} 8... Nc6 {[%clk 0:04:38.1]} 9. Rc1 {[%clk 0:04:52.2]} 9... Rc8
{[%clk 0:04:34.1]} 10. O-O {[%clk 0:04:51]} 10... Bd6 {[%clk 0:04:30.7]} 11. Bg3
{[%clk 0:04:49.5]} 11... Bxg3 {[%clk 0:04:28]} 12. hxg3 {[%clk 0:04:49.4]} 12...
Nf6 {[%clk 0:04:25.9]} 13. a4 {[%clk 0:04:45.8]} 13... b4 {[%clk 0:04:17]} 14.
Ne2 {[%clk 0:04:44.8]} 14... a5 {[%clk 0:04:14.1]} 15. Nf4 {[%clk 0:04:41.7]}
15... O-O {[%clk 0:04:07.2]} 16. Qe2 {[%clk 0:04:39.4]} 16... e5 {[%clk
0:03:38.9]} 17. dxe5 {[%clk 0:04:36.3]} 17... Ng4 {[%clk 0:03:28.9]} 18. e6
{[%clk 0:04:33.1]} 18... fxe6 {[%clk 0:03:22.5]} 19. Nxe6 {[%clk 0:04:33]} 19...
Qf6 {[%clk 0:02:55.4]} 20. Nxf8 {[%clk 0:04:30.5]} 20... Rxf8 {[%clk 0:02:51.8]}
21. Nh4 {[%clk 0:04:26.1]} 21... Nce5 {[%clk 0:02:30.7]} 22. Rc7 {[%clk
0:04:22.6]} 22... Rf7 {[%clk 0:02:12.6]} 23. Rxf7 {[%clk 0:04:14.2]} 23... Qxf7
{[%clk 0:02:07.8]} 24. Bf5 {[%clk 0:04:10.6]} 24... h5 {[%clk 0:01:34.4]} 25.
Bxg4 {[%clk 0:04:06.1]} 25... Nxg4 {[%clk 0:01:30.4]} 26. Rd1 {[%clk 0:04:00.4]}
26... Qe6 {[%clk 0:01:17]} 27. Nf3 {[%clk 0:03:54.9]} 27... Qe4 {[%clk
0:01:02.6]} 28. Qd3 {[%clk 0:03:40.4]} 28... Qe6 {[%clk 0:00:44.4]} 29. Qb5
{[%clk 0:03:36.5]} 29... Bc6 {[%clk 0:00:34.4]} 30. Qb8+ {[%clk 0:03:33.9]}
30... Be8 {[%clk 0:00:18.3]} 31. Qd8 {[%clk 0:03:28.7]} 31... Ne5 {[%clk
0:00:05.2]} 32. Qxd5 {[%clk 0:03:22.7]} 32... Nxf3+ {[%clk 0:00:00.9]} 33. gxf3
{[%clk 0:03:22.6]} 1-0

[Event "Live Chess"]
[Site "Chess.com"]
[Date "2023.05.21"]
[Round "-"]
[White "Rusty_Bridges"]
[Black "tpm07"]
[Result "0-1"]
[WhiteElo "1428"]
[BlackElo "1942"]
[TimeControl "300"]
[EndTime "21:51:09 PDT"]
[Termination "tpm07 won by resignation"]

1. e4 {[%clk 0:04:51.8]} 1... e5 {[%clk 0:04:58.4]} 2. f4 {[%clk 0:04:48.2]}
2... d5 {[%clk 0:04:57]} 3. exd5 {[%clk 0:04:46.7]} 3... exf4 {[%clk 0:04:55.4]}
4. Nf3 {[%clk 0:04:45.3]} 4... Nf6 {[%clk 0:04:54.4]} 5. Bc4 {[%clk 0:04:43.6]}
5... Bd6 {[%clk 0:04:51.4]} 6. O-O {[%clk 0:04:41.8]} 6... O-O {[%clk
0:04:48.9]} 7. d4 {[%clk 0:04:35.9]} 7... c5 {[%clk 0:04:43.9]} 8. Ne5 {[%clk
0:04:23]} 8... cxd4 {[%clk 0:04:35.1]} 9. Qxd4 {[%clk 0:04:21.1]} 9... Qc7
{[%clk 0:04:32.1]} 10. Bxf4 {[%clk 0:04:12.1]} 10... Bc5 {[%clk 0:04:24.5]} 11.
Qxc5 {[%clk 0:04:00.2]} 0-1

[Event "Live Chess"]
[Site "Chess.com"]
[Date "2023.05.21"]
[Round "-"]
[White "raminguy"]
[Black "Nazarenko_vital"]
[Result "1-0"]
[WhiteElo "1966"]
[BlackElo "1597"]
[TimeControl "300"]
[EndTime "21:51:23 PDT"]
[Termination "raminguy won by checkmate"]

1. d4 {[%clk 0:04:58.7]} 1... Nf6 {[%clk 0:04:57.9]} 2. Nc3 {[%clk 0:04:57.8]}
2... e6 {[%clk 0:04:55.7]} 3. e4 {[%clk 0:04:56.7]} 3... c5 {[%clk 0:04:53.1]}
4. d5 {[%clk 0:04:55.4]} 4... exd5 {[%clk 0:04:48]} 5. e5 {[%clk 0:04:54.5]}
5... Ne4 {[%clk 0:04:44.6]} 6. Nxd5 {[%clk 0:04:53.2]} 6... Qa5+ {[%clk
0:04:37.2]} 7. c3 {[%clk 0:04:50.9]} 7... Qd8 {[%clk 0:04:10.4]} 8. Nf3 {[%clk
0:04:46.2]} 8... h6 {[%clk 0:04:08.7]} 9. Bd3 {[%clk 0:04:43.5]} 9... Ng5 {[%clk
0:04:06.6]} 10. O-O {[%clk 0:04:35]} 10... Be7 {[%clk 0:04:02.5]} 11. Re1 {[%clk
0:04:27.8]} 11... O-O {[%clk 0:03:54.3]} 12. Nxg5 {[%clk 0:04:21.7]} 12... Bxg5
{[%clk 0:03:52.1]} 13. Bxg5 {[%clk 0:04:19.8]} 13... hxg5 {[%clk 0:03:51.1]} 14.
Qh5 {[%clk 0:04:15.6]} 14... f6 {[%clk 0:03:25.8]} 15. Bh7+ {[%clk 0:04:13]}
15... Kh8 {[%clk 0:03:23]} 16. Bg6+ {[%clk 0:04:12.9]} 16... Kg8 {[%clk
0:03:21.8]} 17. Qh7# {[%clk 0:04:12.8]} 1-0

[Event "Live Chess"]
[Site "Chess.com"]
[Date "2023.05.21"]
[Round "-"]
[White "chessfiction"]
[Black "KeithArkell"]
[Result "1/2-1/2"]
[WhiteElo "2365"]
[BlackElo "2556"]
[TimeControl "300"]
[EndTime "21:51:55 PDT"]
[Termination "Game drawn by agreement"]

1. e4 {[%clk 0:04:58.8]} 1... c6 {[%clk 0:04:51.6]} 2. d4 {[%clk 0:04:56.3]}
2... d5 {[%clk 0:04:50.6]} 3. e5 {[%clk 0:04:54.1]} 3... c5 {[%clk 0:04:49.7]}
4. dxc5 {[%clk 0:04:53.4]} 4... Nc6 {[%clk 0:04:48.8]} 5. Nf3 {[%clk 0:04:52.9]}
5... Bg4 {[%clk 0:04:47.6]} 6. Bb5 {[%clk 0:04:49.9]} 6... Qa5+ {[%clk
0:04:45.4]} 7. Nc3 {[%clk 0:04:48.4]} 7... Bxf3 {[%clk 0:04:44.5]} 8. Qxf3
{[%clk 0:04:46.8]} 8... e6 {[%clk 0:04:44]} 9. b4 {[%clk 0:04:36.2]} 9... Qxb4
{[%clk 0:04:38.6]} 10. Rb1 {[%clk 0:04:35.7]} 10... Qxc5 {[%clk 0:04:37.6]} 11.
O-O {[%clk 0:04:23.7]} 11... Ne7 {[%clk 0:04:36.5]} 12. Na4 {[%clk 0:04:19.9]}
12... Qxc2 {[%clk 0:04:33.5]} 13. Ba3 {[%clk 0:04:09.6]} 13... Ng6 {[%clk
0:04:21.8]} 14. Rfc1 {[%clk 0:04:03.4]} 14... Qxa2 {[%clk 0:04:04.5]} 15. Rxc6
{[%clk 0:03:59.8]} 15... bxc6 {[%clk 0:03:59.5]} 16. Bxc6+ {[%clk 0:03:58.4]}
16... Kd8 {[%clk 0:03:58.9]} 17. Nc3 {[%clk 0:03:10]} 17... Qxa3 {[%clk
0:03:56.5]} 18. Bxa8 {[%clk 0:02:49.5]} 18... Bb4 {[%clk 0:03:55.5]} 19. Nxd5
{[%clk 0:02:24.4]} 19... Qxf3 {[%clk 0:03:52.9]} 20. gxf3 {[%clk 0:02:21]} 20...
exd5 {[%clk 0:03:49.5]} 21. Rxb4 {[%clk 0:02:19.8]} 21... Ke7 {[%clk 0:03:33.3]}
22. Bxd5 {[%clk 0:02:17.3]} 22... Nxe5 {[%clk 0:03:31.6]} 23. f4 {[%clk
0:02:16]} 23... Nd7 {[%clk 0:03:25.1]} 24. Rb7 {[%clk 0:02:12.8]} 24... a5
{[%clk 0:03:18.3]} 25. Bxf7 {[%clk 0:01:54.4]} 25... Rf8 {[%clk 0:02:28.8]} 26.
Bc4 {[%clk 0:01:32.8]} 26... Rxf4 {[%clk 0:02:26]} 27. Bb5 {[%clk 0:01:32.1]}
27... Rd4 {[%clk 0:02:25.2]} 28. Ra7 {[%clk 0:01:30.9]} 28... Ke6 {[%clk
0:02:14.1]} 29. Bxd7+ {[%clk 0:01:26]} 29... Rxd7 {[%clk 0:02:13]} 30. Rxa5
{[%clk 0:01:25.7]} 30... Kf6 {[%clk 0:02:08.3]} 31. Kg2 {[%clk 0:01:24.7]} 31...
Rd3 {[%clk 0:02:06.9]} 32. f3 {[%clk 0:01:23.8]} 32... g6 {[%clk 0:02:04.5]} 33.
Kg3 {[%clk 0:01:23.3]} 33... Rd1 {[%clk 0:02:01.9]} 34. Ra6+ {[%clk 0:01:21.2]}
34... Kg7 {[%clk 0:01:59.9]} 35. Ra7+ {[%clk 0:01:20.1]} 35... Kh6 {[%clk
0:01:59.3]} 36. Kg2 {[%clk 0:01:15.3]} 36... Rd2+ {[%clk 0:01:55.1]} 37. Kg3
{[%clk 0:01:14.2]} 37... Rd5 {[%clk 0:01:53.6]} 38. Kg2 {[%clk 0:01:12.6]} 38...
Rg5+ {[%clk 0:01:52.3]} 39. Kf2 {[%clk 0:01:11.1]} 39... Rh5 {[%clk 0:01:51.7]}
40. Kg3 {[%clk 0:01:09.8]} 40... Rf5 {[%clk 0:01:48.4]} 41. h4 {[%clk
0:01:06.9]} 41... Rc5 {[%clk 0:01:46]} 42. Kg2 {[%clk 0:01:05.2]} 42... Rc1
{[%clk 0:01:43.9]} 43. Kg3 {[%clk 0:01:04.5]} 43... Rg1+ {[%clk 0:01:42.6]} 44.
Kh3 {[%clk 0:01:03.4]} 44... Rc1 {[%clk 0:01:37.1]} 45. Kg3 {[%clk 0:01:02.4]}
45... Rc4 {[%clk 0:01:35.6]} 46. Kh3 {[%clk 0:01:01.6]} 46... Rc8 {[%clk
0:01:34.4]} 47. Kg3 {[%clk 0:01:00.8]} 47... Rg8 {[%clk 0:01:33.4]} 48. Kh3
{[%clk 0:00:59.7]} 48... Rg7 {[%clk 0:01:32.9]} 49. Ra6 {[%clk 0:00:42.6]} 49...
Rf7 {[%clk 0:01:31.3]} 50. Kg4 {[%clk 0:00:41.8]} 50... Rg7 {[%clk 0:01:27.9]}
51. Rf6 {[%clk 0:00:40.4]} 51... Ra7 {[%clk 0:01:26.5]} 52. h5 {[%clk
0:00:37.3]} 52... Kg7 {[%clk 0:01:25.7]} 53. Rb6 {[%clk 0:00:34.9]} 53... Ra4+
{[%clk 0:01:24]} 54. f4 {[%clk 0:00:34.4]} 54... gxh5+ {[%clk 0:01:10.9]} 55.
Kg5 {[%clk 0:00:32]} 55... h4 {[%clk 0:00:54.7]} 56. Rb7+ {[%clk 0:00:29.9]}
56... Kg8 {[%clk 0:00:53.6]} 57. Rb8+ {[%clk 0:00:25.7]} 57... Kf7 {[%clk
0:00:52.7]} 58. Rb7+ {[%clk 0:00:25.6]} 1/2-1/2

[Event "Live Chess"]
[Site "Chess.com"]
[Date "2023.05.21"]
[Round "-"]
[White "seabuck"]
[Black "Biranidun"]
[Result "0-1"]
[WhiteElo "1885"]
[BlackElo "2541"]
[TimeControl "300"]
[EndTime "21:52:14 PDT"]
[Termination "Biranidun won on time"]

1. d4 {[%clk 0:04:56.7]} 1... Nf6 {[%clk 0:04:59]} 2. c4 {[%clk 0:04:55.4]} 2...
g6 {[%clk 0:04:58]} 3. Nc3 {[%clk 0:04:54.5]} 3... Bg7 {[%clk 0:04:57.3]} 4. e4
{[%clk 0:04:53.6]} 4... d6 {[%clk 0:04:56.8]} 5. Be2 {[%clk 0:04:52.9]} 5... O-O
{[%clk 0:04:55.9]} 6. Nf3 {[%clk 0:04:51.9]} 6... e5 {[%clk 0:04:55]} 7. O-O
{[%clk 0:04:50.7]} 7... Nc6 {[%clk 0:04:54.4]} 8. dxe5 {[%clk 0:04:49.5]} 8...
dxe5 {[%clk 0:04:52.7]} 9. Be3 {[%clk 0:04:44.6]} 9... Bg4 {[%clk 0:04:46.5]}
10. Qc2 {[%clk 0:04:33.3]} 10... Bxf3 {[%clk 0:04:44.9]} 11. Bxf3 {[%clk
0:04:29.8]} 11... Nd4 {[%clk 0:04:44.8]} 12. Bxd4 {[%clk 0:04:24.7]} 12... exd4
{[%clk 0:04:44.7]} 13. Nd5 {[%clk 0:04:23.3]} 13... Nd7 {[%clk 0:04:43]} 14. Be2
{[%clk 0:04:06.9]} 14... c6 {[%clk 0:04:39]} 15. Nb4 {[%clk 0:03:56.2]} 15...
Re8 {[%clk 0:04:37.7]} 16. Rad1 {[%clk 0:03:46.6]} 16... a5 {[%clk 0:04:29]} 17.
Nd3 {[%clk 0:03:42.4]} 17... Rxe4 {[%clk 0:04:28.2]} 18. Bf3 {[%clk 0:03:29.7]}
18... Re7 {[%clk 0:04:27.3]} 19. Rfe1 {[%clk 0:03:24.5]} 19... Rxe1+ {[%clk
0:04:25.9]} 20. Rxe1 {[%clk 0:03:23.3]} 20... Qf8 {[%clk 0:04:24.9]} 21. a3
{[%clk 0:03:15.7]} 21... Nc5 {[%clk 0:04:13.3]} 22. h3 {[%clk 0:02:50.3]} 22...
Nxd3 {[%clk 0:04:10]} 23. Qxd3 {[%clk 0:02:48.6]} 23... Rd8 {[%clk 0:04:09.6]}
24. Re4 {[%clk 0:02:31.5]} 24... Qc5 {[%clk 0:04:07.8]} 25. g3 {[%clk
0:02:20.5]} 25... Bf6 {[%clk 0:04:06.7]} 26. Kg2 {[%clk 0:02:18.8]} 26... Kg7
{[%clk 0:04:06.3]} 27. h4 {[%clk 0:02:16.9]} 27... h5 {[%clk 0:04:05.2]} 28. Qd1
{[%clk 0:02:07.8]} 28... d3 {[%clk 0:04:03.3]} 29. b3 {[%clk 0:01:51.3]} 29...
Qxa3 {[%clk 0:04:01.2]} 30. Bxh5 {[%clk 0:01:45]} 30... gxh5 {[%clk 0:03:11.8]}
31. Qxh5 {[%clk 0:01:42.3]} 31... Qb2 {[%clk 0:03:11.1]} 32. Rg4+ {[%clk
0:01:26.5]} 32... Kf8 {[%clk 0:03:10.4]} 33. Qh6+ {[%clk 0:01:18.1]} 33... Bg7
{[%clk 0:03:09.8]} 34. Qh5 {[%clk 0:00:56.4]} 34... Qe5 {[%clk 0:02:43.4]} 35.
Rg5 {[%clk 0:00:42.2]} 35... Qe4+ {[%clk 0:02:34.9]} 36. f3 {[%clk 0:00:27]}
36... Qe2+ {[%clk 0:02:20.9]} 37. Kh3 {[%clk 0:00:26]} 37... Qf1+ {[%clk
0:02:20.3]} 38. Kg4 {[%clk 0:00:25.1]} 38... Rd4+ {[%clk 0:02:18.5]} 39. Kf5
{[%clk 0:00:19]} 39... Qh3+ {[%clk 0:02:14.3]} 40. Rg4 {[%clk 0:00:12.2]} 40...
Rxg4 {[%clk 0:02:12.9]} 41. fxg4 {[%clk 0:00:10.9]} 41... Qf1+ {[%clk
0:02:10.5]} 42. Ke4 {[%clk 0:00:07.9]} 42... Qe2+ {[%clk 0:02:09.4]} 43. Kf4
{[%clk 0:00:04.5]} 43... Qf2+ {[%clk 0:02:03.9]} 44. Ke4 {[%clk 0:00:02.2]}
44... d2 {[%clk 0:02:03.4]} 0-1

[Event "Live Chess"]
[Site "Chess.com"]
[Date "2023.05.21"]
[Round "-"]
[White "Singapourfeuj"]
[Black "Conradical12"]
[Result "1-0"]
[WhiteElo "2185"]
[BlackElo "1636"]
[TimeControl "300"]
[EndTime "21:52:23 PDT"]
[Termination "Singapourfeuj won by resignation"]

1. d4 {[%clk 0:04:57.6]} 1... d5 {[%clk 0:04:58.3]} 2. c4 {[%clk 0:04:56.5]}
2... c6 {[%clk 0:04:57]} 3. Nf3 {[%clk 0:04:55.1]} 3... Nf6 {[%clk 0:04:56.5]}
4. Nc3 {[%clk 0:04:53.9]} 4... Bf5 {[%clk 0:04:55.9]} 5. cxd5 {[%clk 0:04:48.7]}
5... cxd5 {[%clk 0:04:54.2]} 6. Qb3 {[%clk 0:04:47.3]} 6... Nbd7 {[%clk
0:04:45.5]} 7. e3 {[%clk 0:04:41.3]} 7... e6 {[%clk 0:04:43.8]} 8. Bb5 {[%clk
0:04:39.4]} 8... Bd6 {[%clk 0:04:39.5]} 9. O-O {[%clk 0:04:37.3]} 9... O-O
{[%clk 0:04:36.9]} 10. h3 {[%clk 0:04:25.9]} 10... Qb8 {[%clk 0:04:30.7]} 11.
Bd2 {[%clk 0:04:20.7]} 11... Be4 {[%clk 0:04:28.8]} 12. Nxe4 {[%clk 0:04:14.8]}
12... dxe4 {[%clk 0:04:22.1]} 13. Ne1 {[%clk 0:04:06.8]} 13... Bh2+ {[%clk
0:04:18.8]} 14. Kh1 {[%clk 0:04:05.8]} 14... h5 {[%clk 0:04:11.4]} 15. f4 {[%clk
0:04:03.3]} 15... g6 {[%clk 0:04:07]} 16. Kxh2 {[%clk 0:04:01.5]} 16... Kg7
{[%clk 0:04:06.1]} 17. Bxd7 {[%clk 0:03:59]} 17... Nxd7 {[%clk 0:04:05]} 18. Bc3
{[%clk 0:03:58.1]} 18... f6 {[%clk 0:04:01.8]} 19. Rd1 {[%clk 0:03:56.1]} 19...
g5 {[%clk 0:04:00.4]} 20. d5 {[%clk 0:03:52.4]} 20... Nc5 {[%clk 0:03:53.7]} 21.
Qc4 {[%clk 0:03:45.7]} 21... gxf4 {[%clk 0:03:50.9]} 22. exf4 {[%clk 0:03:42.1]}
22... e5 {[%clk 0:03:46.8]} 23. Qxc5 {[%clk 0:03:40.1]} 23... exf4 {[%clk
0:03:45.3]} 24. d6 {[%clk 0:03:33.8]} 24... f3 {[%clk 0:03:43]} 25. Qg5+ {[%clk
0:03:30.1]} 25... Kf7 {[%clk 0:03:38.8]} 26. Qxf6+ {[%clk 0:03:27.8]} 1-0

[Event "Live Chess"]
[Site "Chess.com"]
[Date "2023.05.21"]
[Round "-"]
[White "Rusty_Bridges"]
[Black "chessfiction"]
[Result "0-1"]
[WhiteElo "1434"]
[BlackElo "2365"]
[TimeControl "300"]
[EndTime "21:54:50 PDT"]
[Termination "chessfiction won by resignation"]

1. e4 {[%clk 0:04:56]} 1... d5 {[%clk 0:04:59.3]} 2. exd5 {[%clk 0:04:54.7]}
2... c6 {[%clk 0:04:58.9]} 3. dxc6 {[%clk 0:04:52.1]} 3... e5 {[%clk 0:04:58.3]}
4. Nc3 {[%clk 0:04:45.7]} 4... Bc5 {[%clk 0:04:55.4]} 5. Ne4 {[%clk 0:04:34.3]}
5... Bb6 {[%clk 0:04:51.4]} 6. Nf3 {[%clk 0:04:31]} 6... Nxc6 {[%clk 0:04:48.4]}
7. Bb5 {[%clk 0:04:29.4]} 7... Bg4 {[%clk 0:04:43.8]} 8. h3 {[%clk 0:04:22.5]}
8... Bh5 {[%clk 0:04:42.2]} 9. d3 {[%clk 0:04:20.4]} 9... Qc7 {[%clk 0:04:38.9]}
10. Be3 {[%clk 0:04:10.7]} 10... O-O-O {[%clk 0:04:37.7]} 11. Bxc6 {[%clk
0:04:05.3]} 11... Qxc6 {[%clk 0:04:35.9]} 12. Bxb6 {[%clk 0:03:56.1]} 12... Qxb6
{[%clk 0:04:35.8]} 13. g4 {[%clk 0:03:37]} 13... Bg6 {[%clk 0:04:34.2]} 14. Nxe5
{[%clk 0:03:26.3]} 14... Bxe4 {[%clk 0:04:32.7]} 15. Nxf7 {[%clk 0:03:11.9]}
15... Bxh1 {[%clk 0:04:30.6]} 16. Nxh8 {[%clk 0:03:10]} 16... Nf6 {[%clk
0:04:27.7]} 17. Nf7 {[%clk 0:02:53.6]} 17... Qe6+ {[%clk 0:04:26.4]} 18. Kd2
{[%clk 0:02:51.8]} 0-1